bitfinex/quotes_ETHUSD_20250703
["timestamp","ask_amount","ask_price","bid_price","bid_amount"]
[1751554080673,0.808,2600.7,2600.4,0.212]
[1751554080877,3.84469656,2601.0,2600.6,0.55]
[1751554081072,4.66117086,2601.1,2600.6,0.742]
[1751554081314,3.84493945,2600.9,2600.6,0.742]
[1751554081882,3.88315491,2601.0,2600.6,4.58725409]
[1751554082212,0.81652033,2601.1,2600.6,4.58721148]
[1751554082414,3.84474111,2601.0,2600.6,0.742]
[1751554082619,0.81652033,2601.1,2600.6,0.742]
[1751554082620,3.84511862,2600.7,2600.6,0.192]
[1751554082800,3.84485382,2600.9,2600.6,0.192]
[1751554083007,0.40368538,2600.8,2600.6,0.192]
[1751554083173,3.84469592,2601.0,2600.7,0.55]
[1751554083393,4.66112163,2601.1,2600.7,0.55]
[1751554083573,0.03842033,2601.1,2600.7,0.55]
[1751554083783,0.7665,2601.3,2601.0,0.192]
[1751554084106,3.84452731,2601.1,2600.7,0.55]
[1751554084423,3.88315006,2601.0,2600.8,0.192]
[1751554084717,3.88316681,2601.0,2600.8,0.192]
[1751554084924,0.7745,2600.9,2600.5,3.84531418]
[1751554085124,0.7745,2600.9,2600.5,4.03731418]
[1751554085420,0.7745,2600.9,2600.6,3.84524359]
[1751554085728,3.84444533,2601.2,2600.8,3.84488719]
[1751554085729,0.7532,2601.2,2600.8,3.84488719]
[1751554086019,0.202,2601.3,2601.1,3.84452731]
[1751554086218,0.01,2601.3,2600.9,0.55]
[1751554086433,0.04842033,2601.3,2601.1,0.192]
[1751554087128,3.8450782,2600.8,2600.5,0.02]
[1751554087332,0.8276,2600.7,2600.5,0.212]
[1751554087614,4.67273437,2600.7,2600.5,0.212]
[1751554087780,3.8836868,2600.6,2600.5,0.02]
[1751554087983,0.03842033,2600.6,2600.5,0.02]
[1751554088185,3.8836868,2600.6,2600.5,0.02]
[1751554088384,4.73038806,2600.6,2600.5,0.02]
[1751554090518,4.0756868,2600.6,2600.5,0.02]
[1751554091289,0.23042033,2600.6,2600.5,0.02]
[1751554091489,0.8276,2600.7,2600.5,0.02]
[1751554091710,0.9838,2600.9,2600.6,3.84524339]
[1751554091911,0.7918,2600.9,2600.7,0.192]
[1751554092323,4.63664491,2600.9,2600.7,0.192]
[1751554092530,0.7918,2600.9,2600.7,0.192]
[1751554092713,4.63667239,2600.9,2600.7,0.192]
[1751554093323,0.7918,2600.9,2600.7,0.192]
[1751554094430,0.03842033,2601.0,2600.7,4.03710107]
[1751554094725,4.64078441,2601.1,2600.7,0.192]
[1751554094893,3.84468915,2601.0,2600.7,0.192]
[1751554095099,3.84484415,2600.9,2600.7,0.192]
[1751554095307,3.84474103,2601.0,2600.7,0.192]
[1751554095509,3.84482877,2600.9,2600.7,0.192]
[1751554095799,1.69386467,2601.1,2600.7,0.192]
[1751554095994,3.84476483,2601.0,2600.7,0.192]
[1751554096326,6.24432721,2601.1,2600.7,0.192]
[1751554096526,5.57663304,2601.1,2600.7,0.192]
[1751554096828,3.84468996,2601.0,2600.7,0.192]
[1751554097732,3.84475456,2601.0,2600.7,0.192]
[1751554098104,3.88317489,2601.0,2600.7,0.192]
[1751554098828,0.03842033,2601.0,2600.7,0.192]
[1751554099537,5.57658643,2601.1,2600.7,4.03711534]
[1751554100323,0.93583509,2601.1,2600.8,4.39488218]
[1751554100509,0.01,2601.3,2601.0,3.84467086]
[1751554100710,0.01,2601.3,2600.9,4.03673712]
[1751554101110,0.01,2601.3,2601.0,3.8446692]
[1751554101309,0.01,2601.3,2601.2,3.84437951]
[1751554102040,0.01,2601.3,2601.2,4.39437951]
[1751554102244,0.01,2601.3,2601.2,5.41411219]
[1751554102623,0.01,2601.3,2601.2,4.58637951]
[1751554103514,0.01,2601.3,2601.2,4.6248233]
[1751554105632,0.01,2601.3,2601.2,4.58637951]
[1751554105832,0.01,2601.3,2601.2,4.6248233]
[1751554106021,0.01,2601.3,2601.2,5.1492233]
[1751554106210,0.01,2601.3,2601.2,16.86829696]
[1751554106542,0.01,2601.3,2601.2,16.82985317]
[1751554107448,1e-08,2601.3,2601.2,16.82985317]
[1751554108246,1e-08,2601.3,2601.2,29.77743959]
[1751554108945,0.75090001,2602.7,2602.3,0.55]
[1751554109111,4.59310751,2602.7,2602.3,0.58842754]
[1751554109311,3.88081995,2602.6,2602.1,0.192]
[1751554109515,4.07281591,2602.6,2602.1,4.0350196]
[1751554110118,3.84249752,2602.5,2602.1,0.192]
[1751554110313,3.88091785,2602.5,2602.1,0.192]
[1751554110514,3.88080629,2602.6,2602.2,0.55]
[1751554110853,3.88080629,2602.6,2602.3,0.192]
[1751554111220,3.84259684,2602.5,2602.3,0.192]
[1751554111857,3.84260682,2602.4,2602.3,0.192]
[1751554112262,3.84277248,2602.3,2601.8,3.84336022]
[1751554112419,3.88110921,2602.4,2602.0,0.192]
[1751554113048,3.84276899,2602.3,2602.0,0.192]
[1751554113241,0.03842033,2602.4,2602.0,4.03517627]
[1751554113565,0.01,2602.7,2602.4,0.55]
[1751554113855,0.01,2602.7,2602.6,0.742]
[1751554114060,0.01,2602.7,2602.6,4.58431153]
[1751554115027,0.01,2602.7,2602.6,4.62273464]
[1751554116368,0.01,2602.7,2602.6,5.22713464]
[1751554116567,0.01,2602.7,2602.6,14.36693873]
[1751554116734,0.01,2602.7,2602.6,14.32851562]
[1751554116928,0.01,2602.7,2602.6,1.69480409]
[1751554117136,3.8521639,2602.7,2602.6,0.192]
[1751554118240,0.01,2602.7,2602.6,0.192]
[1751554118442,3.8521639,2602.7,2602.6,0.192]
[1751554118646,3.8521639,2602.7,2602.3,0.55]
[1751554118647,0.01,2602.7,2602.3,0.55]
[1751554118844,0.01,2602.7,2602.6,4.39231153]
[1751554119231,0.01,2602.7,2602.6,5.03513464]
[1751554120438,0.01,2602.7,2602.6,1.1544]
[1751554120639,0.01,2602.7,2602.6,0.55]
[1751554121245,0.01,2602.7,2602.6,3.88073464]
[1751554121450,0.01,2602.7,2602.6,4.96758639]
[1751554122973,0.01,2602.7,2602.6,4.92916328]
[1751554123163,0.01,2602.7,2602.6,4.96758639]
[1751554123546,0.01,2602.7,2602.6,1.08685175]
[1751554124084,0.01,2602.7,2602.6,5.53356328]
[1751554124245,0.01,2602.7,2602.6,15.53356328]
[1751554124441,1e-08,2602.7,2602.6,15.53356328]
[1751554125444,0.01,2603.8,2603.7,4.99508825]
[1751554125645,0.01,2603.8,2603.7,14.09708499]
[1751554125887,0.01,2603.8,2603.7,14.05867811]
[1751554126445,0.01,2603.8,2603.7,5.87867811]
[1751554126643,0.01,2603.8,2603.7,14.05667811]
[1751554128762,0.01,2603.8,2603.7,14.24867811]
[1751554128969,0.01,2603.8,2603.7,6.07067811]
[1751554129283,0.01,2603.8,2603.7,16.32767811]
[1751554129578,0.01,2603.8,2603.7,14.24667811]
[1751554131381,0.01,2603.8,2603.7,16.32567811]
[1751554131967,0.01,2603.8,2603.7,26.32567811]
[1751554132167,1e-08,2603.8,2603.7,26.32567811]
[1751554132495,1e-08,2603.8,2603.7,16.07067811]
[1751554132793,1e-08,2603.8,2603.7,26.32367811]
[1751554132957,1e-08,2603.8,2603.7,16.07067811]
[1751554133358,1e-08,2603.8,2603.7,26.32267811]
[1751554135882,1e-08,2605.0,2604.8,4.38906633]
[1751554136058,1e-08,2605.0,2604.8,13.20185699]
[1751554136389,1e-08,2605.0,2604.8,13.16346633]
[1751554136689,1e-08,2605.0,2604.8,8.72]
[1751554136897,1e-08,2605.0,2604.8,12.55906633]
[1751554137089,1e-08,2605.0,2604.8,1.08685175]
[1751554137258,1e-08,2605.0,2604.8,8.719]
[1751554137259,0.76160001,2605.0,2604.8,8.719]
[1751554137459,0.76160001,2605.0,2604.8,0.55]
[1751554137792,1e-08,2605.0,2604.8,12.59545699]
[1751554137991,1e-08,2605.0,2604.8,12.55706633]
[1751554138562,1e-08,2605.0,2604.8,13.16146633]
[1751554138763,1e-08,2605.0,2604.8,14.58190794]
[1751554139193,1e-08,2605.0,2604.8,5.80950794]
[1751554139394,1e-08,2605.0,2604.8,12.59445699]
[1751554139627,1e-08,2605.0,2604.8,12.55606633]
[1751554140001,1e-08,2605.0,2604.8,0.55]
[1751554140200,1e-08,2605.0,2604.8,8.75539066]
[1751554140407,1e-08,2605.0,2604.8,12.55606633]
[1751554140606,1e-08,2605.0,2604.8,14.46323426]
[1751554140798,0.75110001,2605.0,2604.8,2.45716793]
[1751554140999,0.75110001,2605.0,2604.8,8.716]
[1751554141324,4.58994695,2605.0,2604.8,8.715]
[1751554141493,0.75110001,2605.0,2604.8,8.715]
[1751554142204,0.75110001,2605.0,2604.8,8.714]
[1751554142656,0.75110001,2605.0,2604.8,0.55]
[1751554143122,4.58995103,2605.0,2604.8,8.714]
[1751554143494,3.84891896,2604.9,2604.8,8.714]
[1751554143699,0.01,2604.9,2604.4,2.072]
[1751554143925,3.83918679,2604.8,2604.5,8.163]
[1751554144230,3.8392232,2604.7,2604.6,8.163]
[1751554144437,3.8391113,2604.8,2604.2,3.83987104]
[1751554144649,0.7704,2604.6,2603.6,2.072]
[1751554144800,0.03842033,2604.5,2603.8,10.0]
[1751554145178,3.87797217,2604.5,2604.0,3.84023467]
[1751554145345,3.87797217,2604.5,2604.1,8.162]
[1751554145843,0.7704,2604.6,2604.1,8.162]
[1751554145844,4.64818798,2604.6,2604.2,0.55]
[1751554146015,3.83972483,2604.4,2604.3,8.3532]
[1751554146423,3.83965596,2604.4,2604.3,8.3532]
[1751554146630,0.7704,2604.6,2604.3,8.3532]
[1751554146828,4.64818503,2604.6,2604.3,8.3532]
[1751554147220,0.80882033,2604.6,2604.3,8.3532]
[1751554147546,4.64819178,2604.6,2604.3,8.3532]
[1751554147845,0.80882033,2604.6,2604.3,8.3532]
[1751554148151,0.7704,2604.6,2604.4,0.7412]
[1751554149022,0.8123,2604.2,2603.2,0.6044]
[1751554149224,3.87853016,2604.1,2603.2,0.6044]
[1751554149439,3.84053409,2603.9,2603.6,0.192]
[1751554149639,3.87895442,2603.9,2603.6,0.192]
[1751554149849,0.03842033,2603.9,2603.6,0.192]
[1751554150054,0.03842033,2603.9,2602.6,0.02]
[1751554150055,0.7853,2603.6,2602.7,8.56214962]
[1751554150365,0.03842033,2603.9,2602.7,8.56214962]
[1751554150366,0.7853,2603.9,2603.2,0.6044]
[1751554150541,0.7853,2603.9,2603.7,0.192]
[1751554152336,0.7853,2603.9,2603.8,0.55]
[1751554152658,0.7853,2603.9,2603.8,4.58254074]
[1751554152838,0.8017,2604.2,2603.8,0.742]
[1751554153147,0.8017,2604.2,2604.0,0.55]
[1751554153352,0.03842033,2604.1,2604.0,0.192]
[1751554153846,0.8017,2604.2,2604.0,0.192]
[1751554154048,0.8017,2604.2,2604.0,4.03222592]
[1751554154550,0.8017,2604.2,2604.0,0.192]
[1751554156322,0.84012033,2604.2,2604.0,0.192]
[1751554156856,5.256737,2604.2,2604.0,0.192]
[1751554157053,1.41677647,2604.2,2604.0,0.192]
[1751554157379,0.8017,2604.2,2604.0,0.192]
[1751554157558,4.64166232,2604.2,2604.0,0.192]
[1751554157864,0.8017,2604.2,2604.0,0.192]
[1751554158435,4.64172345,2604.2,2604.0,0.192]
[1751554158636,0.84012033,2604.2,2603.7,3.84063417]
[1751554158853,0.8017,2604.2,2603.9,4.03231624]
[1751554159155,0.8017,2604.2,2603.9,0.192]
[1751554159362,4.64169539,2604.2,2603.9,0.192]
[1751554159546,0.8017,2604.2,2603.9,0.192]
[1751554159750,4.64165923,2604.2,2603.9,0.192]
[1751554159938,0.03842033,2604.1,2603.7,3.84067046]
[1751554160256,0.23042033,2604.1,2603.7,4.03267046]
[1751554161128,0.23042033,2604.1,2603.7,4.03265492]
[1751554161448,0.23042033,2604.1,2603.8,3.84039363]
[1751554161647,0.192,2604.1,2603.9,3.84032603]
[1751554161847,0.192,2604.1,2603.7,0.192]
[1751554161848,0.23042033,2604.1,2603.7,0.192]
[1751554162047,0.23042033,2604.1,2603.8,3.8404652]
[1751554162253,0.192,2604.1,2603.8,3.8404652]
[1751554162433,0.192,2604.1,2603.8,0.55]
[1751554162634,0.8017,2604.2,2604.0,3.84024577]
[1751554162859,0.8017,2604.2,2603.9,4.03234625]
[1751554163040,0.8017,2604.2,2603.9,4.03231721]
[1751554163241,0.8017,2604.2,2603.9,0.192]
[1751554163437,0.84012033,2604.2,2603.9,0.192]
[1751554163851,4.68008856,2604.2,2603.9,0.192]
[1751554164051,0.84012033,2604.2,2603.9,0.192]
[1751554164346,5.16730318,2604.2,2603.8,0.02]
[1751554164552,0.192,2604.1,2603.8,0.02]
[1751554164728,0.03842033,2604.0,2603.8,0.02]
[1751554165755,0.8017,2604.2,2603.9,3.84032165]
[1751554166333,0.8017,2604.2,2603.9,3.84035416]
[1751554166558,0.8017,2604.2,2603.9,3.84032479]
[1751554166759,0.03842033,2604.1,2603.8,0.212]
[1751554166978,4.61111601,2604.0,2603.8,0.02]
[1751554167134,0.03842033,2603.9,2603.8,0.02]
[1751554168667,3.87881358,2603.9,2603.8,0.02]
[1751554169036,4.07081358,2603.9,2603.8,0.02]
[1751554169397,4.93900658,2603.9,2603.8,0.02]
[1751554169680,34.93900658,2603.9,2603.8,0.02]
[1751554169879,34.90058625,2603.9,2603.8,0.02]
[1751554170462,1.060193,2603.9,2603.8,0.02]
[1751554170667,0.23042033,2603.9,2603.8,0.02]
[1751554171056,0.7708,2604.0,2603.8,0.02]
[1751554171381,0.7708,2604.0,2603.8,3.86052529]
[1751554171680,0.7708,2604.0,2603.8,0.02]
[1751554171883,0.03842033,2603.9,2603.8,0.02]
[1751554172052,3.87881358,2603.9,2603.8,0.02]
[1751554172241,0.90660225,2603.9,2603.8,0.02]
[1751554172441,0.03842033,2603.9,2603.8,0.02]
[1751554172838,0.7708,2604.0,2603.8,0.02]
[1751554173041,0.03842033,2603.9,2603.8,0.02]
[1751554173441,3.87881358,2603.9,2603.8,0.02]
[1751554175050,0.03842033,2603.9,2603.8,0.02]
[1751554175376,3.87881358,2603.9,2603.8,0.02]
[1751554176568,14.74698811,2603.9,2603.8,0.02]
[1751554176777,37.55706778,2603.9,2603.8,0.02]
[1751554177078,34.62348329,2603.5,2603.4,0.02]
[1751554177270,42.77348329,2603.5,2603.4,0.02]
[1751554177464,47.52169754,2603.5,2603.4,0.02]
[1751554177867,4.62912109,2603.0,2602.9,0.02]
[1751554178177,34.66754142,2603.0,2602.9,0.02]
[1751554178378,34.62912109,2603.0,2602.9,0.02]
[1751554178582,34.6295639,2602.7,2602.6,1e-08]
[1751554178748,34.65784984,2602.1,2602.0,0.02]
[1751554178949,42.80684984,2602.1,2602.0,0.02]
[1751554179676,12.80684984,2602.1,2602.0,0.02]
[1751554180071,30.0,2602.3,2602.0,0.02]
[1751554180375,1.0068,2602.4,2602.0,0.762]
[1751554180580,0.03842033,2602.3,2602.0,4.60510173]
[1751554180757,0.03842033,2602.3,2602.1,3.8429516]
[1751554181095,0.03842033,2602.3,2602.2,3.84290215]
[1751554181387,1.0068,2602.4,2602.3,3.84275448]
[1751554181588,0.192,2602.4,2602.3,3.84275448]
[1751554181747,0.03842033,2602.6,2602.0,0.02]
[1751554181951,0.03842033,2602.6,2602.3,3.84271334]
[1751554181952,0.192,2602.6,2602.3,3.84271334]
[1751554182171,0.192,2602.6,2602.4,3.84253628]
[1751554182443,0.03842033,2602.5,2602.3,3.84268544]
[1751554182848,0.03842033,2602.5,2602.2,4.03486362]
[1751554183076,0.03842033,2602.5,2602.3,3.84275044]
[1751554183282,0.03842033,2602.5,2602.2,4.03483699]
[1751554184166,0.03842033,2602.5,2602.2,0.192]
[1751554184371,0.03842033,2602.5,2602.2,4.0348985]
[1751554184685,0.03842033,2602.5,2602.3,3.8427534]
[1751554185466,0.03842033,2602.5,2602.4,3.84260682]
[1751554185757,0.192,2602.6,2602.4,3.84260682]
[1751554185758,0.192,2602.6,2602.5,3.84245917]
[1751554185958,0.192,2602.6,2602.2,0.8164]
[1751554186296,0.192,2602.6,2602.5,3.84245917]
[1751554186478,0.192,2602.6,2602.4,3.84252593]
[1751554187175,0.192,2602.6,2602.2,0.8164]
[1751554187353,0.03842033,2602.9,2602.3,0.55]
[1751554187694,0.192,2602.8,2602.5,3.84231608]
[1751554187882,0.03842033,2602.7,2602.4,0.192]
[1751554188185,0.192,2602.8,2602.4,0.192]
[1751554188186,0.23042033,2602.8,2602.7,3.8421639]
[1751554188393,16.78872435,2603.4,2602.9,3.84179443]
[1751554188394,0.03842033,2603.2,2602.9,3.84179443]
[1751554188576,0.03842033,2603.2,2602.8,4.03395021]
[1751554188761,1.06359236,2603.2,2602.9,3.84177455]
[1751554189099,1.06359236,2603.2,2603.0,3.84170497]
[1751554189800,1.06359236,2603.2,2602.8,0.192]
[1751554189953,4.83158649,2602.8,2602.4,0.192]
[1751554190158,0.03842033,2602.7,2602.4,4.03457498]
[1751554190374,0.03842033,2602.7,2602.4,0.192]
[1751554191175,0.7503,2602.3,2602.1,0.02]
[1751554191378,10.7503,2602.7,2602.3,3.84271265]
[1751554191659,10.03842033,2602.6,2602.2,0.192]
[1751554191987,1.30929236,2602.5,2602.2,3.84289357]
[1751554192393,0.03842033,2602.4,2602.2,3.84289357]
[1751554192559,0.192,2602.5,2602.3,3.84275448]
[1751554193293,0.03842033,2602.6,2602.3,3.84267978]
[1751554193493,0.58822814,2602.6,2602.2,4.03483887]
[1751554193787,0.58822814,2602.6,2602.2,0.192]
[1751554193788,30.0,2602.5,2602.2,0.192]
[1751554194084,0.03842033,2602.4,2602.2,0.192]
[1751554194687,0.03842033,2602.4,2602.1,4.41298218]
[1751554194688,3.88107581,2602.4,2602.1,0.02]
[1751554194891,3.88107581,2602.4,2602.1,0.212]
[1751554194892,0.38810758,2602.3,2602.1,0.212]
[1751554195064,0.03842033,2602.2,2602.1,0.212]
[1751554196604,0.38810758,2602.3,2602.1,0.212]
[1751554196802,0.03842033,2602.2,2602.1,0.212]
[1751554198409,0.03842033,2602.3,2602.1,0.212]
[1751554198702,1.4457239,2602.3,2602.1,0.212]
[1751554198998,1.40730357,2602.3,2602.1,0.212]
[1751554199199,0.23042033,2602.5,2602.1,0.212]
[1751554199505,0.23042033,2602.5,2602.2,3.84279723]
[1751554200007,0.192,2602.8,2602.3,0.742]
[1751554200174,0.03842033,2602.7,2602.4,4.39257574]
[1751554200503,0.23042033,2602.8,2602.5,4.03444322]
[1751554200797,4.57215416,2602.8,2602.5,0.192]
[1751554201001,30.0,2602.7,2602.1,0.02]
[1751554201301,0.192,2602.4,2602.1,3.86304627]
[1751554201500,0.03842033,2602.3,2602.1,3.86304627]
[1751554201664,0.03842033,2602.3,2602.1,0.02]
[1751554202706,0.03842033,2602.3,2602.1,3.86294445]
[1751554202910,0.03842033,2602.3,2602.2,3.84290215]
[1751554203060,0.192,2602.4,2602.2,3.84290215]
[1751554203264,0.7863,2602.6,2602.1,0.57]
[1751554203486,2.14532058,2602.6,2602.1,4.41298963]
[1751554203811,0.23042033,2602.6,2602.3,0.55]
[1751554204090,0.7963,2602.8,2602.4,4.03453528]
[1751554204297,4.67673777,2602.8,2602.4,4.03453528]
[1751554204684,4.67673777,2602.8,2602.4,0.192]
[1751554204989,30.0,2602.7,2602.1,0.57]
[1751554205211,0.03842033,2602.6,2602.3,3.84266924]
[1751554205391,0.03842033,2602.6,2602.2,0.192]
[1751554205392,30.0,2602.5,2602.2,0.192]
[1751554205591,4.69154309,2602.4,2602.1,0.02]
[1751554205889,4.74265669,2602.7,2602.2,3.84281815]
[1751554206090,0.192,2602.5,2602.3,3.84275243]
[1751554206274,0.192,2602.5,2602.1,0.57]
[1751554206473,0.192,2602.5,2602.1,4.41295475]
[1751554207074,0.192,2602.5,2602.2,3.84288427]
[1751554207267,0.03842033,2602.4,2602.1,4.4129695]
[1751554207466,0.192,2602.5,2602.1,0.57]
[1751554207467,0.23042033,2602.5,2602.1,0.57]
[1751554207996,0.23042033,2602.5,2602.1,4.41296666]
[1751554208400,1.24051994,2602.5,2602.1,0.02]
[1751554208700,34.67430215,2602.2,2602.1,0.02]
[1751554208899,35.57473313,2602.2,2602.1,0.02]
[1751554209105,5.92707144,2602.2,2602.1,0.02]
[1751554209402,1.22215864,2602.2,2602.1,0.02]
[1751554209703,5.25706079,2602.2,2602.1,0.02]
[1751554209902,6.89280997,2602.2,2602.1,0.02]
[1751554210099,3.9503388,2602.2,2602.1,0.02]
[1751554210303,2.31458962,2602.2,2602.1,0.02]
[1751554210477,0.23042033,2602.2,2602.1,0.02]
[1751554210670,0.58290857,2602.2,2602.1,0.02]
[1751554210885,0.54448824,2602.2,2602.1,0.02]
[1751554211081,0.192,2602.2,2602.1,0.02]
[1751554211400,0.54448824,2602.2,2602.1,0.02]
[1751554211623,0.192,2602.2,2602.1,0.02]
[1751554211774,0.72477879,2602.2,2602.1,0.02]
[1751554212296,4.92014452,2602.2,2602.1,0.02]
[1751554212499,5.71184452,2602.2,2602.1,0.02]
[1751554212671,6.61404961,2602.2,2602.1,0.02]
[1751554213409,36.42204961,2602.2,2602.1,0.02]
[1751554214317,46.62004961,2602.2,2602.1,0.02]
[1751554214808,47.54983626,2602.1,2602.0,0.02]
[1751554215114,52.65339741,2602.1,2602.0,0.02]
[1751554215311,52.65339741,2602.1,2602.0,1e-08]
[1751554215619,4.60357951,2601.2,2601.1,0.02]
[1751554215783,0.03842033,2601.2,2601.1,0.02]
[1751554215983,3.88279984,2601.2,2601.1,0.02]
[1751554216183,0.92405721,2601.2,2601.1,0.02]
[1751554216382,0.03842033,2601.2,2601.1,0.02]
[1751554216981,0.39011059,2601.3,2601.1,0.02]
[1751554217183,3.88274771,2601.3,2601.1,0.02]
[1751554219219,13.84437951,2601.2,2601.1,0.02]
[1751554219385,35.52390753,2601.2,2601.1,0.02]
[1751554219704,12.76569248,2601.2,2601.1,0.02]
[1751554219902,12.76117951,2601.2,2601.1,0.02]
[1751554220094,43.11234069,2601.2,2601.1,0.02]
[1751554220282,43.11220468,2601.2,2601.1,0.02]
[1751554220482,42.76117951,2601.2,2601.1,0.02]
[1751554220711,43.11203662,2601.2,2601.1,0.02]
[1751554221016,5.09894985,2601.2,2601.1,0.02]
[1751554221183,3.84437951,2601.2,2601.1,0.02]
[1751554221383,3.88279984,2601.2,2601.1,0.02]
[1751554221596,33.88279984,2601.2,2601.1,0.02]
[1751554221832,34.19529524,2601.2,2601.1,0.02]
[1751554222011,38.04418772,2601.2,2601.1,0.02]
[1751554223816,37.69327199,2601.2,2601.1,0.02]
[1751554225326,0.01,2601.6,2601.1,0.57]
[1751554225632,0.01,2601.6,2601.5,5.01833619]
[1751554225819,0.01,2601.6,2601.5,5.21033619]
[1751554226603,0.01,2601.6,2601.5,0.8164]
[1751554226802,0.01,2601.6,2601.5,0.6244]
[1751554227028,0.01,2601.6,2601.5,4.46833619]
[1751554228326,0.01,2601.6,2601.5,5.86877595]
[1751554228622,0.01,2601.6,2601.5,6.09921531]
[1751554229008,0.01,2601.6,2601.5,0.742]
[1751554229215,0.01,2601.6,2601.4,4.39408139]
[1751554229413,0.01,2601.6,2601.4,0.192]
[1751554229646,0.01,2601.6,2601.3,0.8164]
[1751554229822,0.01,2601.6,2601.3,4.66056209]
[1751554230024,0.01,2601.6,2601.4,3.84394846]
[1751554230717,0.01,2601.6,2601.5,3.84393619]
[1751554230918,0.01,2601.6,2601.4,3.84400285]
[1751554231132,0.01,2601.6,2601.5,3.84393619]
[1751554231352,0.01,2601.6,2601.4,3.84400638]
[1751554231545,0.01,2601.6,2601.3,4.66055179]
[1751554231749,0.01,2601.6,2601.4,3.84408395]
[1751554232246,0.01,2601.6,2601.5,3.84393619]
[1751554232447,0.01,2601.6,2601.4,3.84401844]
[1751554232653,0.01,2601.6,2601.5,3.84393619]
[1751554232821,0.01,2601.6,2601.4,3.84400469]
[1751554233517,0.01,2601.6,2601.5,3.84393619]
[1751554233838,0.01,2601.6,2601.4,3.8440016]
[1751554234419,0.01,2601.6,2601.5,3.84393619]
[1751554234637,0.01,2601.6,2601.4,3.84402028]
[1751554234844,0.01,2601.6,2601.3,0.192]
[1751554235150,0.01,2601.6,2601.4,3.84407171]
[1751554235349,0.01,2601.6,2601.5,3.84393619]
[1751554235650,0.01,2601.6,2601.4,3.84400577]
[1751554235853,0.01,2601.6,2601.3,4.03617617]
[1751554236029,0.01,2601.6,2601.4,3.84402289]
[1751554237151,0.01,2601.6,2601.5,3.84393619]
[1751554237453,0.01,2601.6,2601.5,4.46833619]
[1751554238159,0.01,2601.6,2601.5,5.8707761]
[1751554238356,0.01,2601.6,2601.5,6.10121546]
[1751554238740,0.01,2601.6,2601.5,6.0627761]
[1751554239816,0.01,2601.6,2601.5,5.21033619]
[1751554240021,0.01,2601.6,2601.5,1.3664]
[1751554240221,0.01,2601.6,2601.5,4.58593619]
[1751554241426,0.01,2601.6,2601.5,5.24877555]
[1751554242652,0.01,2601.6,2601.5,5.21033619]
[1751554244941,0.01,2601.6,2601.5,6.15621613]
[1751554245457,0.01,2601.6,2601.5,6.11777677]
[1751554245758,0.01,2601.6,2601.5,6.15621613]
[1751554247056,1e-08,2601.6,2601.5,6.15621613]
[1751554247224,1e-08,2601.6,2601.5,16.15621613]
[1751554247424,1e-08,2601.6,2601.5,16.11777677]
[1751554247658,1e-08,2601.6,2601.5,24.24377677]
[1751554248036,1e-08,2601.6,2601.5,16.11777677]
[1751554248229,1e-08,2601.6,2601.5,26.29877677]
[1751554249964,1e-08,2601.6,2601.5,16.11777677]
[1751554250131,1e-08,2601.6,2601.5,26.29677677]
[1751554253840,1e-08,2601.6,2601.5,26.31677677]
[1751554254883,1e-08,2601.6,2601.5,1.74384058]
[1751554255085,1e-08,2601.6,2601.5,12.17793619]
[1751554255254,1e-08,2601.6,2601.5,12.72793619]
[1751554256284,1e-08,2601.6,2601.5,12.72693619]
[1751554257357,1e-08,2601.6,2601.5,4.60593619]
[1751554257557,1e-08,2601.6,2601.5,12.72693619]
[1751554259962,1e-08,2601.6,2601.5,8.882]
[1751554260679,1e-08,2601.6,2601.5,0.02]
[1751554261058,3.84378844,2601.6,2601.5,0.02]
[1751554261378,0.8715722,2601.6,2601.5,0.02]
[1751554262798,1e-08,2601.6,2601.5,0.02]
[1751554263545,1e-08,2601.6,2601.5,3.86393619]
[1751554264052,1e-08,2601.6,2601.5,12.53293619]
[1751554268181,1e-08,2601.6,2601.5,4.41393619]
[1751554268387,1e-08,2601.6,2601.5,12.56937555]
[1751554268586,1e-08,2601.6,2601.5,14.25591663]
[1751554270194,1e-08,2601.6,2601.5,3.86393619]
[1751554270386,1e-08,2601.6,2601.5,11.97993619]
[1751554270591,1e-08,2601.6,2601.5,12.52993619]
[1751554271194,1e-08,2601.6,2601.5,8.686]
[1751554271391,1e-08,2601.6,2601.5,0.02]
[1751554271590,0.4628825,2601.6,2601.5,0.02]
[1751554273198,4.30667093,2601.6,2601.5,0.02]
[1751554273399,5.06437093,2601.6,2601.5,0.02]
[1751554274165,35.06437093,2601.6,2601.5,0.02]
[1751554274505,35.96531154,2601.6,2601.5,0.02]
[1751554274664,6.31737904,2601.6,2601.5,0.02]
[1751554274861,36.35579937,2601.6,2601.5,0.02]
[1751554275085,36.31737904,2601.6,2601.5,0.02]
[1751554275264,49.26496546,2601.6,2601.5,0.02]
[1751554275468,49.26496546,2601.6,2601.3,0.02]
[1751554275469,34.61788395,2601.4,2601.3,0.02]
[1751554275702,41.76878454,2601.4,2601.3,0.02]
[1751554276286,41.9621437,2601.4,2601.3,0.02]
[1751554277005,41.76878454,2601.4,2601.3,0.02]
[1751554278364,41.76770038,2601.4,2601.3,0.02]
[1751554278565,49.88070038,2601.4,2601.3,0.02]
[1751554279169,39.71870038,2601.4,2601.3,0.02]
[1751554279666,49.52971704,2601.4,2601.3,0.02]
[1751554279867,48.62877643,2601.4,2601.3,0.02]
[1751554280669,0.7738,2601.4,2601.3,0.02]
[1751554280870,1e-08,2601.6,2601.3,3.8641629]
[1751554281179,0.23042034,2601.6,2601.3,0.02]